Cogmind - Beta 13 @@@ ROGUE MODE // 2024.02.28 @ 16:51:40 Player: Infomantis Result: Destroyed by G-47 Trooper with Particle Gun Performance ------------- Evolutions (0) 0 Regions Visited (3) 600 Robots Destroyed (15) 75 Value Destroyed (278) 278 Prototype IDs (0) 0 Alien Tech Used (0) 0 Bonus (0) 0 TOTAL SCORE: 953 Bonus ------- None Cogmind --------- Core Integrity 0/250 Matter 300/300 Energy 236/250 System Corruption 0% Temperature Cool (9) Movement Rolling (110) Ox2 Location -10/Subcaves Parts ------- > --- POWER (1) -------- Ion Engine > --- PROPULSION (2) --- Wheel > --- UTILITY (2) ------ Improved Heat Sink Medium Storage Unit > --- WEAPON (2) ------- Medium Laser Subdweller Laser > --- INVENTORY (10) --- Subdweller Power Source Aluminum Leg Large Storage Unit Compact Matter Pod (150) Subdweller Optics Improved Terrain Scanner Seismic Detector Grenade Launcher Rocket Launcher Piercing Trap Peak State ------------ > --- POWER ------------ Ion Engine > --- PROPULSION ------- Wheel Compact Wheel > --- UTILITY ---------- Improved Heat Sink Medium Storage Unit > --- WEAPON ----------- Medium Laser Subdweller Laser > --- INVENTORY -------- Subdweller Power Source Aluminum Leg Large Storage Unit Compact Matter Pod Subdweller Optics Improved Terrain Scanner Seismic Detector Grenade Launcher Rocket Launcher Piercing Trap [Rating: 11] Favorites ----------- Power Ion Engine Engine Ion Engine Propulsion Light Treads Treads Light Treads Wheel Compact Wheel Utility Small Storage Unit Device Improved Heat Sink Storage Small Storage Unit Weapon Medium Laser Energy Gun Medium Laser Ballistic Gun Assault Rifle Launcher Grenade Launcher Build | -11 -10 -10 -10 ------- Run | Yrd Mat Min Sub Slots Evolved . | . . . . Power . | . . . . Propulsion . | . . . . Utility . | . . . . Weapon . | . . . . Parts Attached 22 | 7 4 9 2 Power 2 | 1 . 1 . Engine 2 | 1 . 1 . Core . | . . . . Reactor . | . . . . Propulsion 7 | 2 2 2 1 Treads 4 | 2 2 . . Leg . | . . . . Wheel 3 | . . 2 1 Hover . | . . . . Flight . | . . . . Utility 5 | 2 1 2 . Device 3 | 1 1 1 . Storage 2 | 1 . 1 . Processor . | . . . . Hackware . | . . . . Protection . | . . . . Artifact . | . . . . Weapon 8 | 2 1 4 1 Energy Gun 3 | 1 1 . 1 Energy Cannon . | . . . . Ballistic Gun 3 | 1 . 2 . Ballistic Cannon . | . . . . Launcher 2 | . . 2 . Special Weapon . | . . . . Impact Weapon . | . . . . Slashing Weapon . | . . . . Piercing Weapon . | . . . . Special Melee Weapon . | . . . . Unidentified Prototypes . | . . . . Parts Lost 5 | . . 3 2 Power . | . . . . Propulsion 4 | . . 2 2 Utility 1 | . . 1 . Weapon . | . . . . Highest Loss Streak 2 | . . 2 1 To Critical Strikes . | . . . . Average Slot Usage (%) 95 | . 100 94 95 Engine 14 | . 14 14 14 Treads 11 | . 28 9 . Wheel 12 | . . 13 23 Device 13 | . 14 13 14 Storage 14 | . 14 14 14 Energy Gun 15 | . 14 14 22 Ballistic Gun 12 | . 14 13 5 Naked Turns . | . . . . Heaviest Build 22 | 15 15 20 22 Greatest Support 40 | 40 40 40 32 Greatest Overweight (x) 1 | . . . 1 Average Overweight (x) . | . . . . Largest Inventory Capacity 10 | 8 8 10 10 Average Capacity 8 | 7 8 8 10 Most Carried 10 | 8 8 8 10 Average Carried 7 | 5 7 7 8 Final Capacity 10 | 8 8 10 10 Final Carried 10 | 8 8 7 10 Class Distribution -------------------- 100% | Mutant Dominant Class ---------------- Mutant | -10/Materials Mutant | -10/Mines Mutant | -10/Subcaves Resources | -11 -10 -10 -10 ----------- Run | Yrd Mat Min Sub Matter Collected 614 | 315 19 257 23 Remotely . | . . . . Salvage Created 469 | 140 38 253 38 Parts 24 | 6 3 12 3 Haulers Intercepted . | . . . . Recyclers Shooed 1 | 1 . . . Parts Field Recycled . | . . . . Retrieved Matter . | . . . . Parts Self-Destructed . | . . . . Prevented . | . . . . Kills | -11 -10 -10 -10 ------- Run | Yrd Mat Min Sub Combat Hostiles Destroyed 15 | . 1 13 1 Guns 8 | . 1 6 1 AOE 7 | . . 7 . Classes Destroyed 6 | 2 1 2 1 Tunneler 3 | 3 . . . Recycler 2 | 1 . 1 . Swarmer 6 | . . 6 . Grunt 3 | . 1 2 . Subdweller 1 | . . . 1 Assembled 5 | . . 5 . Best Kill Streak 5 | 2 1 5 1 Combat Bots Only 5 | . 1 5 1 Max Kills in Single Turn 3 | 1 1 3 1 Gunslinging . | . . . . Exploded 3 | . . 3 . Melee . | . . . . Uniques/NPCs Destroyed . | . . . . Combat | -11 -10 -10 -10 -------- Run | Yrd Mat Min Sub Hostile Shots Fired 69 | . 19 34 16 Missed 10 | . 2 5 3 Damage Taken 777 | . 200 394 183 Core 263 | . 44 140 79 Absorbed by Shields . | . . . . Core Remaining (%) 100 | 100 . . . Volleys Fired 54 | 15 7 26 6 Largest 2 | 2 2 2 2 Hottest 110 | 70 70 70 110 Shots Fired 102 | 30 14 46 12 Gun 96 | 30 14 40 12 Cannon . | . . . . Launcher 6 | . . 6 . Special . | . . . . Kinetic 43 | 15 7 20 1 Thermal 53 | 15 7 20 11 Explosive 6 | . . 6 . Electromagnetic . | . . . . Robot Hit Streak 15 | 7 6 9 15 Robot Miss Streak 4 | 4 1 2 . Penetration Max . | . . . . Secondary Targets . | . . . . Shots Hit Robots 71 | 20 12 27 12 Core Hits 32 | 4 3 22 3 Critical Kills . | . . . . Critical Parts Destroyed . | . . . . Critical Strikes 3 | 2 . . 1 Burn 3 | 2 . . 1 Melee Attacks . | . . . . Impact . | . . . . Slashing . | . . . . Piercing . | . . . . Sneak Attacks . | . . . . Combat Hostiles . | . . . . Follow-up Attacks . | . . . . Damage Inflicted 1294 | 229 148 722 195 Guns 919 | 229 148 347 195 Cannons . | . . . . Explosions 375 | . . 375 . Melee . | . . . . Ramming . | . . . . Kinetic 333 | 116 72 133 12 Thermal 627 | 113 76 255 183 Explosive 334 | . . 334 . Electromagnetic . | . . . . Impact . | . . . . Slashing . | . . . . Piercing . | . . . . Highest Corruption . | . . . . Average Corruption . | . . . . Corruption Purged . | . . . . Corruption Blocked . | . . . . Overload Shots . | . . . . Overflow Damage . | . . . . Projectiles . | . . . . Explosions . | . . . . Melee . | . . . . Knockbacks . | . . . . Impact . | . . . . Kinetic . | . . . . Secondary . | . . . . Self-Inflicted Damage 13 | . . 13 . Shots 1 | . . 1 . Rammed . | . . . . Targets Rammed . | . . . . Kicked . | . . . . Crushed . | . . . . Highest Temperature 228 | 45 45 228 . Average Temperature 61 | 17 22 125 . Received Heat Transfer 333 | . 111 129 93 Siege Activations . | . . . . Robots Corrupted . | . . . . Combat Hostiles . | . . . . Parts Fried . | . . . . Impact Corruptions . | . . . . Robots Melted . | . . . . Combat Hostiles . | . . . . Parts Melted 2 | 1 . 1 . Heat Transferred 1803 | 481 222 679 421 Parts Sabotaged . | . . . . Parts Stolen . | . . . . Parts Stripped . | . . . . Power Chain Reactions . | . . . . Alert | -11 -10 -10 -10 ------- Run | Yrd Mat Min Sub Peak Influence 186 | 20 43 186 . Initial 16 | . 13 16 . Average 52 | 10 27 66 . Maximum Alert Level . | . . . . Low Security (%) 100 | 100 100 100 . Level 1 . | . . . . Level 2 . | . . . . Level 3 . | . . . . Level 4 . | . . . . Level 5 . | . . . . High Security . | . . . . Max Security . | . . . . Squads Dispatched 1 | . 1 . . Investigation 1 | . 1 . . Extermination . | . . . . Reinforcement . | . . . . Assault . | . . . . Garrison . | . . . . Intercept . | . . . . Searches Triggered . | . . . . Construction Impeded . | . . . . Haulers Reinforced . | . . . . Active Scanning Responses . | . . . . Cargo Convoy Interrupts . | . . . . Stealth | -11 -10 -10 -10 --------- Run | Yrd Mat Min Sub Distress Signals . | . . . . Communications Jammed . | . . . . Distress Signals . | . . . . Times Spotted 29 | . 5 20 4 Peak Tracking Total 8 | . 5 8 3 Tactical Retreats . | . . . . Traps | -11 -10 -10 -10 ------- Run | Yrd Mat Min Sub Traps Triggered 3 | . 3 . . Indirectly . | . . . . Trap Hack Attempts . | . . . . Triggered . | . . . . Disarmed . | . . . . Reprogrammed . | . . . . Reused . | . . . . Traps Extracted . | . . . . Installed . | . . . . Triggered . | . . . . Most Traps Carried 1 | . . . 1 Machines | -11 -10 -10 -10 ---------- Run | Yrd Mat Min Sub Machines Disabled 3 | . . 3 . Max in Single Turn 3 | . . 3 . Machines Repaired . | . . . . Machines Dismantled . | . . . . Machines Sabotaged . | . . . . Overloaded Fab Kills . | . . . . Hacking | -11 -10 -10 -10 --------- Run | Yrd Mat Min Sub Machines Accessed 1 | . 1 . . Terminals 1 | . 1 . . Fabricators . | . . . . Repair Stations . | . . . . Recycling Units . | . . . . Scanalyzers . | . . . . Garrison Access . | . . . . Total Hacks 4 | . 4 . . Successful 1 | . 1 . . Failed 3 | . 3 . . Catastrophic . | . . . . Database Lockouts . | . . . . Manual . | . . . . Terminals 4 | . 4 . . Fabricators . | . . . . Repair Stations . | . . . . Recycling Units . | . . . . Scanalyzers . | . . . . Garrison Access . | . . . . Terminal Hacks 1 | . 1 . . Branch Access Points 1 | . 1 . . Fabricator Hacks . | . . . . Repair Station Hacks . | . . . . Recycling Unit Hacks . | . . . . Scanalyzer . | . . . . Garrison Access Hacks . | . . . . Unauthorized Hacks . | . . . . Terminals . | . . . . Fabricators . | . . . . Repair Stations . | . . . . Recycling Units . | . . . . Scanalyzers . | . . . . Garrison Access . | . . . . Data Cores Recovered . | . . . . Used . | . . . . Hacking Detections 1 | . 1 . . Full Trace Events . | . . . . Feedback Events . | . . . . Feedback Blocked . | . . . . Robot Schematics Acquired . | . . . . Robots Built . | . . . . Authchips . | . . . . Time . | . . . . Total Robot Build Rating . | . . . . Part Schematics Acquired . | . . . . Parts Built . | . . . . Authchips . | . . . . Time . | . . . . Total Part Build Rating . | . . . . Parts Repaired . | . . . . Time . | . . . . Parts Recycled . | . . . . Recycled Matter . | . . . . Retrieved Matter . | . . . . Retrieved Components . | . . . . Parts Scanalyzed . | . . . . Part Schematics Acquired . | . . . . Parts Damaged . | . . . . Bothacking | -11 -10 -10 -10 ------------ Run | Yrd Mat Min Sub Used RIF Installer . | . . . . Robots Hacked . | . . . . Non-combat . | . . . . Combat . | . . . . Robot Hacks Applied . | . . . . Relay Couplers Released . | . . . . Fabnet Peak Effective % . | . . . . Robots Rewired . | . . . . Allies Hacked . | . . . . Hacks Repelled . | . . . . Allies | -11 -10 -10 -10 -------- Run | Yrd Mat Min Sub Total Allies 1 | . . 1 . Largest Group 1 | . . 1 . Highest-Rated Group 31 | . . 31 . Highest-Rated Ally 31 | . . 31 . Total Orders . | . . . . Ally Attacks . | . . . . Total Damage . | . . . . Kills . | . . . . Allies Corrupted . | . . . . Allies Melted . | . . . . Intel | -11 -10 -10 -10 ------- Run | Yrd Mat Min Sub Robot Analysis Total . | . . . . Derelict Logs Recovered 1 | . . 1 . Drone Launches . | . . . . Drone Recoveries . | . . . . Exploration | -11 -10 -10 -10 ------------- Run | Yrd Mat Min Sub Turns Passed 1703 | 247 207 1065 184 Spaces Moved 1049 | 118 103 677 151 Core 4 | 4 . . . Treads 359 | 114 103 142 . Legs . | . . . . Wheels 686 | . . 535 151 Hover . | . . . . Flight . | . . . . Fastest Speed 50 | 50 160 100 90 Average Speed 120 | 156 160 112 98 Slowest Speed 160 | 160 160 160 115 Overloaded Moves . | . . . . Propulsion Burnouts . | . . . . Robots Hopped . | . . . . Cave-ins Triggered . | . . . . Exploration Rate (%) 36 | 7 28 99 13 Regions Visited 3 Branch Regions 2 Pre-discovered Areas . | . . . . Known Exits Taken 1 | . 1 . . Unknown Exits Taken 2 | 1 . 1 . Scrap Searched 1 | . . 1 . Spaces Dug . | . . . . Terrain Destroyed 9 | . . 9 . Melee . | . . . . Projectile . | . . . . AOE 9 | . . 9 . Terrain Rammed . | . . . . Walls Destroyed . | . . . . Machines Disabled . | . . . . Actions | -11 -10 -10 -10 --------- Run | Yrd Mat Min Sub Total 1386 | 147 133 932 174 Wait 238 | . 13 214 11 Move 1046 | 117 102 676 151 Hop . | . . . . Pick Up 18 | 8 3 4 3 Fast Attach 13 | 7 3 1 2 Attach 2 | . . 2 . Detach . | . . . . Swap 7 | . 1 6 . Drop 8 | . 4 3 1 Fire 54 | 15 7 26 6 Melee . | . . . . Ram . | . . . . Kick . | . . . . Crush . | . . . . Escape Stasis . | . . . . Rewire . | . . . . Trap . | . . . . Miscellaneous . | . . . . Route ------- -11/Scrapyard -10/Materials (discovered 2 exits: *Min x2) -10/Mines (discovered 4 exits: [*Mat x2] / [*Exi] / [*Sub]) -10/Subcaves History --------- Turn | Location | Event 3 | -11/Scrapyard | Discovered new exit (range 15) 248 | -11/Scrapyard | Entered Materials 300 | -10/Materials | Identified exit to Mines 324 | -10/Materials | Build established: Mutant 455 | -10/Materials | Entered Mines 566 | -10/Mines | Deemed a non-threat by the Exiles lab entrance 566 | -10/Mines | Discovered new exit (range 5) 603 | -10/Mines | Received a Rocket Launcher from a helpful Derelict 850 | -10/Mines | Found a hidden stash of uninstalled traps 879 | -10/Mines | Assembled infested the area 884 | -10/Mines | Assisted by a Guerilla fighting off Assembled 901 | -10/Mines | Core integrity fell below 50% 912 | -10/Mines | Discovered new exit (range 8) 967 | -10/Mines | Discovered new exit (range 7) 1136 | -10/Mines | Received a Mining Laser from a helpful Derelict 1518 | -10/Mines | Discovered new exit (range 3) 1520 | -10/Mines | Entered Subcaves 1573 | -10/Subcaves | Core integrity fell below 20% 1704 | -10/Subcaves | Destroyed by G-47 Trooper with Particle Gun Last Messages --------------- 01454_ U-05 Engineer builds a Wall. 01486_ T-07 Excavator is excavating. 01497_ U-05 Engineer lays Concrete. 01518_ EXIT=FOUND LOCATION=UNKNOWN AMBIENT_HEAT=-10 GOAL=ESCAPE 01569_ Com. Wheel destroyed. 01583_ JQ-4Y4(R) destroyed. 01586_ Acquired 3 matter. 01592_ Acquired Piercing Trap. 01595_ Dropped Assault Rifle. 01596_ Acquired Sub. Laser. 01598_ Acquired Sub. Power Source. 01600_ Acquired Sub. Optics. 01601_ Acquired 10 matter. 01624_ Acquired Wheel. 01641_ Acquired 10 matter. 01690_ G-34 Mercenary suffers critical hit (Burn). 01700_ Com. Wheel destroyed. Map ----- +----------------------------------------------------+ | | | | | | | | | ?????????????????????????????????????????????????? | | ?????????????????????????????????????????????????? | | ?????????????????????????????????????????????????? | | ?????????????????????????????????????????????????? | | ?????????????????????????????????????????????????? | | ?????????????????????????????????????????????????? | | ?????????????????????????????????????????????????? | | ?????????????????????????????????????????????????? | | ?????????????????????????????????????????????????? | | ?????????????????????????????????????????????????? | | ?????????????????????????????????????????????????? | | ?????????????????????????????????????????????????? | | ?????????????????????????????????????????????????? | | ?????????????????????????????????????????????????? | | ???????????????????###???????????????????????????? | | #???????????????#### ##????#####?????????????????? | | #?#####????????# ###??# #?????????????????? | | ## %##???????# #### #?????????????????? | | % %#????????# #?????????????????? | | % ###???###?# g ####?????????????????? | | #???# ### g #????????????????????? | | % #??## ##@ ##????????????????????? | | # ##?# #####?????????????????????? | | # ##### #### ##???????????????????????? | | #???# ## ###?????????????????????? | | #??## ##????????????????????? | | #??# ## #????????????????????? | | # ##?# [ % ## #????????????????????? | | # ### ## ## #????????????????????? | | ## ## ## ##????????????????????? | | ### %#### #?????????????????????? | | ##?# #####% #?????????????????????? | | #?# #??# ##?????????????????????? | | ##?# #### ##??????????????????????? | | ##?## ##???????????????????????? | | #??# ## ##????????????????????????? | | ##??##?#### % ##?????????????????????????? | | #???????## ###### "" #?????????????? | | ##??????## % #????????????? | | ###????# % #???????????? | | #????## ## # #???????????? | | ##?????## ###### #???????????? | | ###?????# ##?????? ???????????? | | #?##??### #####???? ????????????? | | #### ###### %% #????? ????????????? | | #### ### ##????? ????????????? | +----------------------------------------------------+ Best States ------------- Heat Dissipation 39 Energy Generation 10 Energy Capacity 250 Matter Stores 300 Matter Capacity 300 Sight Range 16 Terrain Scan Density 10 Evasion (%) 42 Recoil Reduction 2 Item Schematics ----------------- None Robot Schematics ------------------ None Fabricated ------------ Nothing Alien Tech Used ----------------- None Achievements -------------- None Challenges ------------ None Game ------ Seed UltimateSingularityMembrane Manual? 0 Play Time 00:11:48 Cumulative 365.8 hours Start 2024.02.28 @ 11:59:57 End 2024.02.28 @ 16:51:40 Sessions 1 Manual Loads 0 Difficulty Rogue Special Mode None Game No. 238 Rogue 215 Adventurer 6 Explorer 17 Win Type - Total 28 Types 20/0/4/1/0/1/1/1/0 Lore% 90 Gallery% 93 Achievement% 79 Wizard Run 0 Options --------- Layout 1 ASCII 0 Keyboard 0 Movement Numpad Keybinds 0 Fullscreen 1 Font 16/TamsynBold Map View 55x38 Zoom Use 0% Tactical HUD 1 Map Filters NONE Filters NONE Steam 1 RUN: aaa12504-733d-43f9-a67d-6aa8ade6112f